bitfinex/quotes_BTCUSD_20240701
["timestamp","ask_amount","ask_price","bid_price","bid_amount"]
[1719822170239,3.7212494,63240.0,63239.0,0.47439]
[1719822170433,3.76801096,63240.0,63239.0,0.47439]
[1719822170611,3.75801096,63240.0,63239.0,0.47439]
[1719822170812,3.74401096,63240.0,63239.0,0.47439]
[1719822171246,3.75801096,63240.0,63239.0,0.47439]
[1719822171650,3.44175596,63240.0,63239.0,0.47439]
[1719822172027,3.11361888,63240.0,63239.0,0.47439]
[1719822172249,3.45021459,63240.0,63239.0,0.47439]
[1719822172450,3.13639012,63240.0,63239.0,0.47439]
[1719822172648,3.45003321,63240.0,63239.0,0.47439]
[1719822173138,3.76628821,63240.0,63239.0,0.47439]
[1719822174187,3.74628821,63240.0,63239.0,0.47439]
[1719822174388,3.75628821,63240.0,63239.0,0.47439]
[1719822175013,3.42987388,63240.0,63239.0,0.47439]
[1719822175214,3.76634997,63240.0,63239.0,0.47439]
[1719822175416,3.45017963,63240.0,63239.0,0.47439]
[1719822175990,3.76643463,63240.0,63239.0,0.47439]
[1719822176165,3.63487963,63240.0,63239.0,0.47439]
[1719822176918,3.63571963,63240.0,63239.0,0.47439]
[1719822177125,3.95197463,63240.0,63239.0,0.47439]
[1719822177537,4.15197463,63240.0,63239.0,0.47439]
[1719822177995,3.83571963,63240.0,63239.0,0.47439]
[1719822178200,3.63571963,63240.0,63239.0,0.47439]
[1719822178699,3.63357981,63240.0,63239.0,0.47439]
[1719822178998,3.94983481,63240.0,63239.0,0.47439]
[1719822179200,3.63357981,63240.0,63239.0,0.47439]
[1719822179339,4.33357981,63240.0,63239.0,0.47439]
[1719822179755,4.39693881,63240.0,63239.0,0.47439]
[1719822180323,4.38693881,63240.0,63239.0,0.47439]
[1719822180522,4.39693881,63240.0,63239.0,0.47439]
[1719822180665,4.71319381,63240.0,63239.0,0.47439]
[1719822180862,4.37877288,63240.0,63239.0,0.47439]
[1719822181075,4.71324232,63240.0,63239.0,0.47439]
[1719822181281,5.32443732,63240.0,63239.0,0.47439]
[1719822181581,5.04755528,63240.0,63239.0,0.47439]
[1719822182410,5.19252043,63240.0,63239.0,0.47439]
[1719822182619,5.01955528,63240.0,63239.0,0.47439]
[1719822182817,5.04755528,63240.0,63239.0,0.47439]
[1719822183364,5.34981028,63240.0,63239.0,0.47439]
[1719822183790,5.53041028,63240.0,63239.0,0.47439]
[1719822184003,5.73057925,63240.0,63239.0,0.47439]
[1719822184759,5.71657925,63240.0,63239.0,0.47439]
[1719822184982,5.701976,63240.0,63239.0,0.47439]
[1719822185187,5.199721,63240.0,63239.0,0.47439]
[1719822185389,5.015021,63240.0,63239.0,0.47439]
[1719822185549,5.199721,63240.0,63239.0,0.47439]
[1719822185751,5.013121,63240.0,63239.0,0.47439]
[1719822185971,5.009121,63240.0,63239.0,0.47439]
[1719822186195,5.023121,63240.0,63239.0,0.47439]
[1719822186399,3.956026,63240.0,63239.0,0.47439]
[1719822186621,3.35770279,63240.0,63239.0,0.47439]
[1719822186956,3.37170279,63240.0,63239.0,0.47182363]
[1719822187159,2.67314683,63240.0,63239.0,0.47182363]
[1719822187446,2.76569972,63240.0,63239.0,0.47182363]
[1719822187638,2.88338568,63240.0,63239.0,0.47182363]
[1719822187791,2.86938568,63240.0,63239.0,0.47182363]
[1719822187992,2.96938568,63240.0,63239.0,0.47182363]
[1719822188204,2.98338568,63240.0,63239.0,0.47182363]
[1719822188406,2.95538568,63240.0,63239.0,0.47182363]
[1719822188826,2.54944472,63240.0,63239.0,0.47182363]
[1719822189032,2.47989183,63240.0,63239.0,0.47182363]
[1719822189231,2.46589183,63240.0,63239.0,0.47182363]
[1719822189608,2.47989183,63240.0,63239.0,0.47182363]
[1719822190008,1.79427044,63240.0,63239.0,0.61652363]
[1719822190236,1.96910099,63240.0,63239.0,0.61652363]
[1719822190451,1.97910099,63240.0,63239.0,0.61652363]
[1719822191189,2.35489411,63240.0,63239.0,0.61652363]
[1719822191364,2.71822853,63240.0,63239.0,0.47182363]
[1719822191566,2.50189595,63240.0,63239.0,0.47182363]
[1719822192067,2.80415095,63240.0,63239.0,0.47182363]
[1719822192265,2.62859452,63240.0,63239.0,0.47182363]
[1719822192477,2.64259452,63240.0,63239.0,0.47182363]
[1719822192669,2.5580218,63240.0,63239.0,0.47182363]
[1719822192847,2.47495326,63240.0,63239.0,0.47182363]
[1719822193220,2.33359485,63240.0,63239.0,0.47182363]
[1719822193422,2.22064969,63240.0,63239.0,0.47182363]
[1719822193624,2.35445992,63240.0,63239.0,0.47182363]
[1719822193846,2.99022389,63240.0,63239.0,0.47182363]
[1719822194053,3.29516389,63240.0,63239.0,0.47182363]
[1719822194260,3.3800957,63240.0,63239.0,0.47182363]
[1719822194462,3.44550466,63240.0,63239.0,0.47182363]
[1719822194662,3.47942889,63240.0,63239.0,0.47182363]
[1719822194839,3.49342889,63240.0,63239.0,0.47182363]
[1719822195428,3.50742889,63240.0,63239.0,0.47182363]
[1719822195635,3.47942889,63240.0,63239.0,0.47182363]
[1719822195798,3.49342889,63240.0,63239.0,0.47182363]
[1719822195998,3.70742889,63240.0,63239.0,0.47182363]
[1719822196206,4.15096476,63240.0,63239.0,0.47182363]
[1719822196406,3.09528975,63240.0,63239.0,0.47182363]
[1719822196817,3.21297269,63240.0,63239.0,0.47182363]
[1719822197016,3.16597085,63240.0,63239.0,0.47182363]
[1719822197304,3.16197085,63240.0,63239.0,0.47182363]
[1719822197432,3.33922791,63240.0,63239.0,0.47182363]
[1719822197833,3.35322791,63240.0,63239.0,0.47182363]
[1719822198057,3.68848291,63240.0,63239.0,0.47182363]
[1719822198261,3.37222791,63240.0,63239.0,0.47182363]
[1719822198587,3.98198291,63240.0,63239.0,0.47182363]
[1719822198810,3.96798291,63240.0,63239.0,0.47182363]
[1719822199013,4.13717379,63240.0,63239.0,0.47182363]
[1719822199350,3.92317379,63240.0,63239.0,0.47182363]
[1719822199576,3.46591532,63240.0,63239.0,0.47182363]
[1719822199779,4.56461532,63240.0,63239.0,0.47182363]
[1719822200003,4.36461532,63240.0,63239.0,0.47182363]
[1719822200223,4.68087032,63240.0,63239.0,0.47182363]
[1719822202516,4.30207438,63240.0,63239.0,0.47182363]
[1719822202866,4.68163218,63240.0,63239.0,0.47182363]
[1719822203068,4.61812204,63240.0,63239.0,0.47182363]
[1719822203272,4.68153933,63240.0,63239.0,0.47182363]
[1719822203887,4.88153933,63240.0,63239.0,0.47182363]
[1719822204058,4.92854117,63240.0,63239.0,0.47182363]
[1719822204639,4.72854117,63240.0,63239.0,0.46927825]
[1719822204846,4.92854117,63240.0,63239.0,0.46927825]
[1719822205004,5.0874962,63240.0,63239.0,0.46927825]
[1719822205610,4.94138311,63240.0,63239.0,0.46927825]
[1719822205806,5.08610018,63240.0,63239.0,0.46927825]
[1719822206453,4.92701401,63240.0,63239.0,0.46927825]
[1719822208364,5.24326901,63240.0,63239.0,0.46927825]
[1719822208716,5.24326901,63240.0,63239.0,0.46686576]
[1719822208957,5.24370721,63240.0,63239.0,0.46686576]
[1719822209452,5.87568721,63240.0,63239.0,0.15060576]
[1719822209865,5.87568721,63240.0,63239.0,0.15152976]
[1719822210415,0.168172,63222.0,63221.0,0.000924]
[1719822210617,2.01032579,63222.0,63221.0,0.000924]
[1719822210951,2.02032579,63222.0,63221.0,0.000924]
[1719822211780,1.83561463,63222.0,63221.0,0.000924]
[1719822211955,2.00982854,63222.0,63221.0,0.000924]
[1719822212547,2.02382854,63222.0,63221.0,0.000924]
[1719822212744,2.03782854,63222.0,63221.0,0.000924]
[1719822213187,2.02382854,63222.0,63221.0,0.475444]
[1719822213758,2.00982854,63222.0,63221.0,0.475444]
[1719822214776,1.70748354,63222.0,63221.0,0.617744]
[1719822214996,1.62079106,63222.0,63221.0,0.475444]
[1719822215197,1.69801352,63222.0,63221.0,0.475444]
[1719822215454,1.46095318,63222.0,63221.0,0.475444]
[1719822215668,1.69801257,63222.0,63221.0,0.475444]
[1719822216993,2.02435757,63222.0,63221.0,0.475444]
[1719822217209,2.04735757,63222.0,63221.0,0.475444]
[1719822217905,2.37370257,63222.0,63221.0,0.475444]
[1719822218131,3.04971362,63222.0,63221.0,0.475444]
[1719822218345,3.40655835,63222.0,63221.0,0.475444]
[1719822218564,3.42055835,63222.0,63221.0,0.475444]
[1719822218720,4.10655835,63222.0,63221.0,0.475444]
[1719822219129,4.12055835,63222.0,63221.0,0.475444]
[1719822219296,4.09255835,63222.0,63221.0,0.475444]
[1719822219811,4.12055835,63222.0,63221.0,0.475444]
[1719822220013,4.10655835,63222.0,63221.0,0.475444]
[1719822220216,4.23965835,63222.0,63221.0,0.475444]
[1719822220535,4.23965835,63222.0,63204.0,0.1]
[1719822220536,1.117505,63205.0,63204.0,0.1]
[1719822220714,2.02636653,63205.0,63204.0,0.1]
[1719822220932,2.17429076,63205.0,63204.0,0.1]
[1719822221187,2.13399345,63205.0,63204.0,0.1]
[1719822221433,2.20755829,63205.0,63204.0,0.1]
[1719822221633,2.20755829,63205.0,63204.0,0.57465]
[1719822222335,2.15696779,63205.0,63193.0,0.09571471]
[1719822222554,2.15696779,63205.0,63175.0,0.009262]
[1719822222555,0.263207,63184.0,63175.0,0.009262]
[1719822222760,0.263207,63184.0,63183.0,0.2421]
[1719822222761,1.28559749,63184.0,63183.0,0.2421]
[1719822222967,1.29150372,63184.0,63183.0,0.2421]
[1719822223170,1.29150372,63184.0,63183.0,0.71691]
[1719822223858,1.29150372,63184.0,63183.0,0.78957036]
[1719822223859,0.10705778,63184.0,63183.0,0.78957036]
[1719822224058,0.316457,63200.0,63187.0,0.0801]
[1719822224312,0.158246,63193.0,63190.0,0.0631]
[1719822224544,0.31648,63196.0,63190.0,0.0631]
[1719822224545,0.158248,63192.0,63191.0,0.0801]
[1719822224770,0.158248,63192.0,63191.0,0.61795]
[1719822224771,0.97668717,63192.0,63191.0,0.61795]
[1719822224949,0.98668717,63192.0,63191.0,0.61795]
[1719822225249,1.34393464,63192.0,63191.0,0.61795]
[1719822225452,1.34393464,63192.0,63191.0,0.47475]
[1719822225453,1.58403087,63192.0,63191.0,0.47475]
[1719822225637,1.40307198,63192.0,63191.0,0.47475]
[1719822226038,1.40307198,63192.0,63191.0,0.45975]
[1719822226220,1.41707198,63192.0,63191.0,0.45975]
[1719822226435,1.40307198,63192.0,63191.0,0.45975]
[1719822226636,1.58454004,63192.0,63191.0,0.45975]
[1719822226840,1.59854004,63192.0,63191.0,0.45975]
[1719822227040,1.6315346,63192.0,63191.0,0.45975]
[1719822227240,2.19597504,63192.0,63191.0,0.45975]
[1719822227440,2.19597832,63192.0,63191.0,0.45975]
[1719822227641,1.24504832,63192.0,63191.0,0.45975]
[1719822227853,1.25904832,63192.0,63191.0,0.45975]
[1719822228067,1.51143004,63192.0,63191.0,0.45975]
[1719822228228,0.31677942,63192.0,63191.0,0.647425]
[1719822228491,0.78416336,63192.0,63191.0,0.60145]
[1719822228631,1.10065836,63192.0,63191.0,0.60145]
[1719822229036,1.58838411,63192.0,63191.0,0.46075]
[1719822229454,1.57438411,63192.0,63191.0,0.45975]
[1719822229698,1.58838411,63192.0,63191.0,0.46075]
[1719822229871,1.80608411,63192.0,63191.0,0.45975]
[1719822230093,2.10857911,63192.0,63191.0,0.45975]
[1719822230321,2.12257911,63192.0,63191.0,0.46075]
[1719822230550,2.10857911,63192.0,63191.0,0.45975]
[1719822230699,2.11857911,63192.0,63191.0,0.45975]
[1719822230902,2.21751911,63192.0,63191.0,0.46075]
[1719822231104,2.02320598,63192.0,63191.0,0.46075]
[1719822231413,2.21413926,63192.0,63191.0,0.46075]
[1719822231646,2.21813926,63192.0,63191.0,0.46075]
[1719822232050,2.21413926,63192.0,63191.0,0.46075]
[1719822232264,2.93063426,63192.0,63191.0,0.46075]
[1719822232414,2.99616352,63192.0,63191.0,0.45975]
[1719822232615,2.80016352,63192.0,63191.0,0.46075]
[1719822233208,2.80016352,63192.0,63191.0,0.45975]
[1719822233209,2.79616352,63192.0,63191.0,0.45975]
[1719822233417,2.82416352,63192.0,63191.0,0.46075]
[1719822233621,2.49766852,63192.0,63191.0,0.46075]
[1719822234008,2.58149757,63192.0,63191.0,0.46075]
[1719822234374,2.58157971,63192.0,63191.0,0.46075]
[1719822234634,2.38157971,63192.0,63191.0,0.46075]
[1719822234958,2.58168233,63192.0,63191.0,0.46075]
[1719822235159,2.54082482,63192.0,63191.0,0.46075]
[1719822235284,2.50185178,63192.0,63191.0,0.46075]
[1719822235488,2.30185178,63192.0,63191.0,0.46075]
[1719822235689,2.50185178,63192.0,63191.0,0.46075]
[1719822235888,2.51185178,63192.0,63191.0,0.46075]
[1719822236121,2.50185178,63192.0,63191.0,0.46075]
[1719822236373,2.86731982,63192.0,63191.0,0.46075]
[1719822236565,3.10787604,63192.0,63191.0,0.46075]
[1719822236825,2.90787604,63192.0,63191.0,0.46075]
[1719822236995,3.10787604,63192.0,63191.0,0.46075]
[1719822237218,2.58138104,63192.0,63191.0,0.46075]
[1719822237360,3.04378095,63192.0,63191.0,0.46075]
[1719822237568,2.90762566,63192.0,63191.0,0.46075]
[1719822237993,2.57113066,63192.0,63191.0,0.46075]
[1719822238198,2.59113066,63192.0,63191.0,0.46075]
[1719822239435,2.90762566,63192.0,63191.0,0.46075]
[1719822240394,2.58113066,63192.0,63191.0,0.46075]
[1719822240594,2.4742364,63192.0,63191.0,0.46075]
[1719822240803,2.5915097,63192.0,63191.0,0.46075]
[1719822241008,2.9080047,63192.0,63191.0,0.46075]
[1719822241204,2.9080047,63192.0,63191.0,0.461674]
[1719822241405,2.3979207,63192.0,63191.0,0.461674]
[1719822241776,2.31923144,63192.0,63191.0,0.460674]
[1719822242999,2.29327164,63192.0,63191.0,0.460674]
[1719822243199,2.26231602,63192.0,63191.0,0.460674]
[1719822243513,2.23431602,63192.0,63191.0,0.460674]
[1719822243694,2.26231602,63192.0,63191.0,0.460674]
[1719822243851,0.54536206,63192.0,63191.0,0.542274]
[1719822244029,0.54536206,63192.0,63191.0,0.608274]
[1719822244030,0.75915479,63192.0,63191.0,0.608274]
[1719822244237,1.07564979,63192.0,63191.0,0.608274]
[1719822244436,0.83655079,63192.0,63191.0,0.608274]
[1719822244639,0.82255079,63192.0,63191.0,0.608274]
[1719822244847,0.77315479,63192.0,63191.0,0.608274]
[1719822245048,0.75915479,63192.0,63191.0,0.608274]
[1719822245252,0.76915479,63192.0,63191.0,0.608274]
[1719822245700,0.29441279,63192.0,63191.0,0.608274]
[1719822245920,0.29398597,63192.0,63191.0,0.608274]
[1719822246293,0.17287769,63192.0,63191.0,0.608274]
[1719822246537,0.27979239,63192.0,63191.0,0.608274]
[1719822246693,0.1187547,63192.0,63191.0,0.618274]
[1719822246900,0.1077547,63192.0,63191.0,0.84718193]
[1719822247134,0.0463547,63192.0,63191.0,1.16368193]
[1719822247305,0.063386,63203.0,63198.0,0.1504]
[1719822247675,0.01,63208.0,63197.0,0.158234]
[1719822247676,0.158213,63206.0,63199.0,0.1504]
[1719822247805,0.158213,63206.0,63201.0,0.1504]
[1719822247806,0.16233898,63206.0,63201.0,0.1504]
[1719822248005,0.16233898,63206.0,63200.0,0.01635646]
[1719822248006,0.16233898,63206.0,63203.0,0.0819]
[1719822248966,0.17233898,63206.0,63203.0,0.0819]
[1719822249228,0.32055198,63206.0,63203.0,0.0819]
[1719822249735,0.1,63205.0,63203.0,0.0819]
[1719822250307,0.1,63205.0,63204.0,0.0715]
[1719822250705,0.1,63208.0,63204.0,0.0715]
[1719822250933,0.014,63205.0,63204.0,0.0715]
[1719822251142,0.014,63205.0,63204.0,0.3510121]
[1719822251370,0.014,63205.0,63204.0,0.311217]
[1719822251870,0.014,63205.0,63204.0,0.153]
[1719822252107,0.014,63205.0,63204.0,0.14569258]
[1719822252562,0.014,63205.0,63204.0,0.14469258]
[1719822252563,0.114,63205.0,63204.0,0.14469258]
[1719822252765,0.128,63205.0,63204.0,0.14569258]
[1719822252901,0.135,63205.0,63204.0,0.14569258]
[1719822253102,0.293215,63205.0,63204.0,0.14569258]
[1719822255067,0.29291289,63205.0,63204.0,0.14569258]
[1719822255304,0.60934289,63205.0,63204.0,0.14569258]
[1719822256286,1.09811187,63205.0,63204.0,0.14569258]
[1719822257144,1.43493692,63205.0,63204.0,0.14569258]
[1719822257346,1.53334089,63205.0,63204.0,0.001]
[1719822258333,1.4579616,63205.0,63204.0,0.001]
[1719822258543,1.53368809,63205.0,63204.0,0.001]
[1719822258823,1.43754187,63205.0,63204.0,0.001]
[1719822258964,1.18425865,63205.0,63204.0,0.001]
[1719822259972,0.55139865,63205.0,63204.0,0.1505]
[1719822260634,0.39318365,63205.0,63204.0,0.1505]
[1719822261258,0.23084467,63205.0,63204.0,0.1605]
[1719822261387,0.13469789,63205.0,63204.0,0.1605]
[1719822261590,0.13179173,63205.0,63204.0,0.1505]
[1719822261834,0.23179173,63205.0,63204.0,0.37255152]
[1719822262044,0.13177069,63205.0,63204.0,0.38255152]
[1719822262428,0.05520404,63205.0,63204.0,0.38255152]
[1719822262630,0.05520404,63205.0,63204.0,1.01542152]
[1719822262631,0.03469789,63205.0,63204.0,1.01542152]
[1719822263064,0.03469789,63205.0,63204.0,0.69898652]
[1719822263905,0.03469789,63205.0,63204.0,0.1505]
[1719822264462,0.05515143,63205.0,63204.0,0.1505]
[1719822264662,0.05515162,63205.0,63204.0,0.1505]
[1719822265072,0.05484959,63205.0,63204.0,0.1505]
[1719822265269,0.13108354,63205.0,63204.0,0.1505]
[1719822265798,1.08449752,63205.0,63204.0,0.1505]
[1719822265957,1.09449752,63205.0,63204.0,0.1505]
[1719822266158,1.09449752,63205.0,63204.0,0.001]
[1719822266377,1.08449752,63205.0,63204.0,0.001]
[1719822266984,1.09449752,63205.0,63204.0,0.001]
[1719822267282,2.14513865,63205.0,63204.0,0.001]
[1719822267654,2.14536806,63205.0,63204.0,0.001]
[1719822268014,1.93836984,63205.0,63204.0,0.001]
[1719822268221,0.474742,63192.0,63186.0,0.1541]
[1719822268490,0.57399204,63192.0,63186.0,0.1541]
[1719822270335,0.58399204,63192.0,63186.0,0.1541]
[1719822270812,0.801237,63192.0,63186.0,0.1541]
[1719822271054,0.90750009,63192.0,63186.0,0.1541]
[1719822271520,0.91750009,63192.0,63186.0,0.1541]
[1719822272060,0.90750009,63192.0,63186.0,0.1541]
[1719822272266,1.06983907,63192.0,63186.0,0.1541]
[1719822273252,1.06983907,63192.0,63183.0,0.1]
[1719822273253,1.79326105,63192.0,63183.0,0.1]
[1719822273798,1.85666005,63192.0,63183.0,0.1]
[1719822274001,1.85797968,63192.0,63183.0,0.1]
[1719822274447,1.85097968,63192.0,63183.0,0.1]
[1719822274655,1.86497968,63192.0,63183.0,0.1]
[1719822274887,1.85497968,63192.0,63183.0,0.1]
[1719822275088,1.86897968,63192.0,63183.0,0.1]
[1719822275218,2.18547468,63192.0,63183.0,0.1]
[1719822275421,2.20847468,63192.0,63183.0,0.1]
[1719822277185,2.20952802,63192.0,63183.0,0.1]
[1719822277383,2.20952802,63192.0,63191.0,0.475674]
[1719822280147,1.99577391,63192.0,63191.0,0.475674]
[1719822280362,2.21005269,63192.0,63191.0,0.475674]
[1719822280788,2.21025823,63192.0,63191.0,0.475674]
[1719822281191,1.89376323,63192.0,63191.0,0.475674]
[1719822281636,2.21025823,63192.0,63191.0,0.475674]
[1719822281846,1.89376323,63192.0,63191.0,0.475674]
[1719822282241,2.21025823,63192.0,63191.0,0.475674]
[1719822283296,2.07587416,63192.0,63191.0,0.475674]
[1719822283522,2.21047997,63192.0,63191.0,0.475674]
[1719822284348,2.18247997,63192.0,63191.0,0.475674]
[1719822284565,2.19647997,63192.0,63191.0,0.475674]
[1719822284775,2.21047997,63192.0,63191.0,0.475674]
[1719822284976,2.19647997,63192.0,63191.0,0.475674]
[1719822285177,2.18217868,63192.0,63191.0,0.475674]
[1719822285540,2.21017868,63192.0,63191.0,0.475674]
[1719822286316,1.89368368,63192.0,63191.0,0.475674]
[1719822286519,1.89356869,63192.0,63191.0,0.475674]
[1719822286720,1.65497762,63192.0,63191.0,0.475674]
[1719822286938,1.44727762,63192.0,63191.0,0.475674]
[1719822287179,1.66492065,63192.0,63191.0,0.475674]
[1719822287736,1.66492065,63192.0,63191.0,0.5390714]
[1719822287737,1.02193065,63192.0,63191.0,0.5390714]
[1719822287934,1.02193065,63192.0,63191.0,0.475674]
[1719822288287,0.92929156,63192.0,63191.0,0.475674]
[1719822289065,0.81428762,63192.0,63191.0,0.475674]
[1719822289267,0.82428762,63192.0,63191.0,0.475674]
[1719822289476,1.24081815,63192.0,63191.0,0.475674]
[1719822290035,1.22681815,63192.0,63191.0,0.475674]
[1719822290408,1.24081815,63192.0,63191.0,0.475674]
[1719822290647,1.23981815,63192.0,63191.0,0.475674]
[1719822290855,0.91332315,63192.0,63191.0,0.475674]
[1719822291000,0.91232315,63192.0,63191.0,0.475674]
[1719822291201,1.23881815,63192.0,63191.0,0.475674]
[1719822291419,0.92232315,63192.0,63191.0,0.475674]
[1719822291615,0.85892415,63192.0,63191.0,0.475674]
[1719822292341,0.87153509,63192.0,63191.0,0.475674]
[1719822292691,0.97143231,63192.0,63191.0,0.475674]
[1719822294993,0.98143231,63192.0,63191.0,0.475674]
[1719822295197,1.29792731,63192.0,63191.0,0.475674]
[1719822295756,1.10622378,63192.0,63191.0,0.475674]
[1719822295973,1.2977481,63192.0,63191.0,0.475674]
[1719822296185,1.61424307,63192.0,63191.0,0.475674]
[1719822297471,1.60424307,63192.0,63191.0,0.475674]
[1719822297674,1.61424307,63192.0,63191.0,0.475674]
[1719822298820,1.42274066,63192.0,63191.0,0.475674]
[1719822299002,1.61484014,63192.0,63191.0,0.475674]
[1719822300275,1.60484014,63192.0,63191.0,0.475674]
[1719822300503,1.61484014,63192.0,63191.0,0.475674]
[1719822301450,1.67297405,63192.0,63191.0,0.475674]
[1719822303239,1.98946905,63192.0,63191.0,0.475674]
[1719822303448,2.02839631,63192.0,63191.0,0.475674]
[1719822303575,2.12248394,63192.0,63191.0,0.475674]
[1719822303779,2.34489131,63192.0,63191.0,0.475674]
[1719822304528,2.0054348,63192.0,63191.0,0.475674]
[1719822304750,2.33079265,63192.0,63191.0,0.475674]
[1719822304939,2.34479265,63192.0,63191.0,0.475674]
[1719822305180,2.34479261,63192.0,63191.0,0.475674]
[1719822305388,2.34449132,63192.0,63191.0,0.475674]
[1719822305964,2.33249132,63192.0,63191.0,0.475674]
[1719822306956,2.34649132,63192.0,63191.0,0.475674]
[1719822307604,2.34650351,63192.0,63191.0,0.475674]
[1719822308000,1.84530851,63192.0,63191.0,0.475674]
[1719822308203,1.82230851,63192.0,63191.0,0.475674]
[1719822309169,1.67463833,63192.0,63191.0,0.475674]
[1719822309953,1.91640063,63192.0,63191.0,0.475674]
[1719822310153,1.82224204,63192.0,63191.0,0.475674]
[1719822310705,1.84465627,63192.0,63191.0,0.475674]
[1719822310969,2.00445627,63192.0,63191.0,0.475674]
[1719822311484,2.32095127,63192.0,63191.0,0.475674]
[1719822311981,2.32095127,63192.0,63191.0,0.4510394]
[1719822312239,2.46236984,63192.0,63191.0,0.4510394]
[1719822312801,2.33095127,63192.0,63191.0,0.4510394]
[1719822313487,2.32095127,63192.0,63191.0,0.4510394]
[1719822313954,2.31986906,63192.0,63191.0,0.4510394]
[1719822314959,2.75130406,63192.0,63191.0,0.4510394]
[1719822315594,2.41480906,63192.0,63191.0,0.4510394]
[1719822317159,2.41482198,63192.0,63191.0,0.4510394]
[1719822317306,1.99762133,63192.0,63191.0,0.4510394]
[1719822317518,2.4151274,63192.0,63191.0,0.4510394]
[1719822318317,1.8208924,63192.0,63191.0,0.4510394]
[1719822318519,1.8208924,63192.0,63190.0,0.0673]
[1719822318520,1.4167106,63191.0,63190.0,0.0673]
[1719822318719,2.15893282,63191.0,63190.0,0.0673]
[1719822318919,2.15893191,63191.0,63190.0,0.0673]
[1719822319964,1.107767,63190.0,63189.0,0.0869]
[1719822320187,1.70170067,63190.0,63189.0,0.0869]
[1719822320355,1.57004615,63190.0,63189.0,0.0869]
[1719822320730,1.117802,63188.0,63187.0,0.0661]
[1719822320935,0.791312,63186.0,63185.0,0.0884]
[1719822321271,0.801337,63184.0,63183.0,0.1]
[1719822321493,1.57015115,63184.0,63183.0,0.1]
[1719822322690,1.24361615,63184.0,63183.0,0.1]
[1719822323115,1.05367598,63184.0,63183.0,0.1]
[1719822323314,1.36221083,63184.0,63183.0,0.1]
[1719822323515,1.24417962,63184.0,63183.0,0.1]
[1719822323722,1.25817962,63184.0,63183.0,0.1]
[1719822324134,0.85564462,63184.0,63183.0,0.1708]
[1719822324339,0.85564462,63184.0,63183.0,0.2571]
[1719822324495,0.92646918,63184.0,63183.0,0.2571]
[1719822325413,1.02646918,63184.0,63183.0,0.2571]
[1719822325837,0.95564462,63184.0,63183.0,0.2571]
[1719822326266,0.76514098,63184.0,63183.0,0.2571]
[1719822326601,0.95500758,63184.0,63183.0,0.2571]
[1719822326932,0.86370357,63184.0,63183.0,0.2571]
[1719822327129,0.54716857,63184.0,63183.0,0.2571]
[1719822327303,0.42746873,63184.0,63183.0,0.2571]
[1719822329204,0.19882538,63184.0,63183.0,0.2571]
[1719822329399,0.42749219,63184.0,63183.0,0.2571]
[1719822331640,0.43108074,63184.0,63183.0,0.2571]
[1719822332156,0.40744713,63184.0,63183.0,0.2571]
[1719822332358,0.20982244,63184.0,63183.0,0.2571]
[1719822332596,0.4074916,63184.0,63183.0,0.2571]
[1719822333714,0.36030068,63184.0,63183.0,0.45378723]
[1719822333934,0.36030068,63184.0,63183.0,0.77032723]
[1719822334166,0.2484251,63184.0,63183.0,0.77032723]
[1719822334388,0.24483655,63184.0,63183.0,0.77032723]
[1719822334604,0.24843144,63184.0,63183.0,0.77032723]
[1719822335285,0.24813015,63184.0,63183.0,0.77032723]
[1719822335533,0.24839625,63184.0,63183.0,0.77032723]
[1719822335971,0.24480136,63184.0,63183.0,0.77032723]
[1719822336196,0.24839742,63184.0,63183.0,0.77032723]
[1719822336427,0.23439742,63184.0,63183.0,0.77032723]
[1719822336677,0.24239742,63184.0,63183.0,0.77032723]
[1719822337304,0.20379894,63184.0,63183.0,0.77032723]
[1719822337575,0.12529477,63184.0,63183.0,0.28551723]
[1719822337765,0.12859924,63184.0,63183.0,0.29551723]
[1719822337971,0.23859924,63184.0,63183.0,0.29551723]
[1719822338801,0.23859924,63184.0,63183.0,0.45378723]
[1719822339210,0.15659064,63184.0,63183.0,0.45378723]
[1719822339376,0.13868695,63184.0,63183.0,0.45378723]
[1719822339577,0.20009631,63184.0,63183.0,1.08686723]
[1719822339964,0.19649793,63184.0,63183.0,1.08686723]
[1719822340164,0.19649793,63184.0,63183.0,1.28686723]
[1719822340814,0.09649793,63184.0,63183.0,1.28686723]
[1719822341751,0.018,63184.0,63183.0,1.28686723]
[1719822342173,0.09549099,63184.0,63183.0,1.28686723]
[1719822343646,0.09549099,63184.0,63183.0,1.08686723]
[1719822344466,0.09549099,63184.0,63183.0,1.28686723]
[1719822344663,0.09549099,63184.0,63183.0,1.08686723]
[1719822345010,0.09549938,63184.0,63183.0,1.08686723]
[1719822345239,0.09549938,63184.0,63183.0,1.28686723]
[1719822345441,0.09549938,63184.0,63183.0,1.08686723]
[1719822347065,0.09549938,63184.0,63183.0,1.28686723]
[1719822347289,0.09549938,63184.0,63183.0,1.08686723]
[1719822347816,0.09495175,63184.0,63183.0,1.08686723]
[1719822348114,0.01745237,63184.0,63183.0,1.28686723]
[1719822348497,0.01745237,63184.0,63183.0,1.08686723]
[1719822348498,0.09496551,63184.0,63183.0,1.08686723]
[1719822348883,0.09496551,63184.0,63183.0,1.28686723]
[1719822349482,0.01745237,63184.0,63183.0,1.28686723]
[1719822349685,0.09496296,63184.0,63183.0,1.28686723]
[1719822351277,0.00745237,63184.0,63183.0,1.28686723]
[1719822351474,0.00745237,63184.0,63183.0,2.28228621]
[1719822351690,0.00745237,63184.0,63183.0,2.28328621]
[1719822352096,0.2989606,63191.0,63190.0,0.965262]
[1719822352315,0.37759959,63191.0,63190.0,1.1257882]
[1719822352504,0.37759959,63191.0,63190.0,1.3357882]
[1719822352736,0.37528086,63191.0,63190.0,1.3357882]
[1719822352943,0.37469504,63191.0,63190.0,1.3357882]
[1719822353613,0.38169504,63191.0,63190.0,1.8522932]
[1719822354084,0.38169504,63191.0,63190.0,1.8512932]
[1719822354085,0.39069504,63191.0,63190.0,1.8512932]
[1719822354527,0.39042958,63191.0,63190.0,1.8512932]
[1719822354705,0.39043057,63191.0,63190.0,1.8512932]
[1719822355243,0.31205605,63191.0,63190.0,1.8512932]
[1719822355690,0.31205605,63191.0,63190.0,2.01363218]
[1719822355892,0.31205605,63191.0,63190.0,2.33013718]
[1719822356091,0.30505605,63191.0,63190.0,2.33013718]
[1719822356316,0.30805605,63191.0,63190.0,2.33013718]
[1719822356670,0.29905605,63191.0,63190.0,2.33013718]